bitfinex/quotes_SOLUSD_20240624
["timestamp","ask_amount","ask_price","bid_price","bid_amount"]
[1719191794643,6.178,128.48,128.43,7.7858]
[1719191795052,6.178,128.48,128.42,7.7869]
[1719191795944,6.178,128.48,128.42,100.0]
[1719191796148,6.178,128.48,128.43,0.34]
[1719191796331,6.178,128.48,128.44,7.7854]
[1719191796665,6.178,128.48,128.44,7.7857]
[1719191796968,6.178,128.48,128.44,100.0]
[1719191797142,6.178,128.48,128.46,7.7842]
[1719191797972,6.178,128.48,128.45,7.9549]
[1719191798330,6.178,128.48,128.45,0.17]
[1719191798563,6.178,128.48,128.45,0.34]
[1719191800072,6.178,128.48,128.45,8.125]
[1719191801191,6.178,128.48,128.42,100.0]
[1719191801471,6.178,128.48,128.41,7.787]
[1719191802075,6.178,128.48,128.42,7.7868]
[1719191802539,6.178,128.48,128.41,0.17]
[1719191802940,6.178,128.48,128.4,100.0]
[1719191803633,6.178,128.48,128.41,7.7874]
[1719191804336,16.4255,128.47,128.39,7.7885]
[1719191804557,26.04628505,128.46,128.36,259.9]
[1719191804854,26.04628505,128.46,128.37,7.7898]
[1719191805032,21.4935,128.44,128.33,100.0]
[1719191805237,6.4033,128.42,128.31,100.0]
[1719191805449,6.4033,128.42,128.34,100.0]
[1719191805649,6.4033,128.42,128.36,7.7905]
[1719191805955,6.4033,128.42,128.35,7.7909]
[1719191806745,6.4033,128.42,128.36,7.7905]
[1719191806946,15.8739,128.41,128.32,100.0]
[1719191807175,26.19028505,128.4,128.28,100.0]
[1719191807458,26.19028505,128.4,128.27,119.49]
[1719191807459,26.19028505,128.4,128.31,7.7932]
[1719191807636,1.30338505,128.39,128.3,107.7941]
[1719191807835,26.19028505,128.4,128.31,7.7934]
[1719191808263,26.19028505,128.4,128.32,7.7929]
[1719191808743,26.19028505,128.4,128.32,7.7928]
[1719191809357,26.19028505,128.4,128.33,7.7924]
[1719191809554,26.19028505,128.4,128.32,7.7926]
[1719191810344,7.83028505,128.4,128.32,7.7926]
[1719191810643,6.5269,128.4,128.32,7.7928]
[1719191811251,7.83028505,128.4,128.31,8.1335]
[1719191811448,6.1108,128.37,128.29,7.7946]
[1719191811780,15.2423,128.36,128.29,7.7946]
[1719191812066,7.86958505,128.35,128.27,7.7957]
[1719191812259,7.86958505,128.35,128.26,7.7965]
[1719191812642,7.86958505,128.35,128.27,7.796]
[1719191813048,7.86958505,128.35,128.26,7.7965]
[1719191813249,15.0113,128.34,128.23,119.4958]
[1719191813570,6.6369,128.33,128.26,7.7965]
[1719191814047,6.6369,128.33,128.25,7.7971]
[1719191815452,6.6369,128.33,128.26,7.7964]
[1719191816239,6.6369,128.33,128.24,100.34]
[1719191816454,6.6369,128.33,128.24,7.9676]
[1719191816643,6.6369,128.33,128.25,7.7971]
[1719191816857,6.6369,128.33,128.24,7.9676]
[1719191817067,6.6369,128.33,128.25,7.7971]
[1719191817370,16.31468505,128.34,128.21,19.4992]
[1719191817371,6.5317,128.31,128.21,19.4992]
[1719191817547,6.5317,128.31,128.23,7.798]
[1719191818362,6.5317,128.31,128.24,7.7977]
[1719191818867,6.5317,128.31,128.23,7.7982]
[1719191819255,6.5317,128.31,128.24,107.9673]
[1719191819443,6.5317,128.31,128.25,9.41436087]
[1719191819650,6.5317,128.31,128.22,100.34]
[1719191819850,6.5317,128.31,128.22,108.1388]
[1719191820049,6.5317,128.31,128.22,100.34]
[1719191820253,6.5317,128.31,128.24,100.0]
[1719191820457,6.5317,128.31,128.25,0.34]
[1719191820767,6.5317,128.31,128.23,7.7979]
[1719191821074,6.5317,128.31,128.22,107.9686]
[1719191821256,6.5317,128.31,128.22,100.17]
[1719191821859,6.5317,128.31,128.22,107.9689]
[1719191822375,6.5317,128.31,128.22,100.17]
[1719191823168,6.5317,128.31,128.22,107.969]
[1719191823372,1.30338505,128.3,128.21,7.7994]
[1719191824375,7.83508505,128.31,128.22,7.969]
[1719191824551,21.759,128.28,128.19,7.8005]
[1719191824871,21.759,128.28,128.18,108.6464606]
[1719191825060,21.759,128.28,128.18,208.6464606]
[1719191825452,21.759,128.28,128.18,219.2051606]
[1719191825649,21.759,128.28,128.19,7.8004]
[1719191826046,21.759,128.28,128.21,7.7995]
[1719191826250,21.759,128.28,128.17,19.5038]
[1719191826251,18.36,128.24,128.14,16.12817042]
[1719191826461,1.30338505,128.24,128.14,116.12817042]
[1719191826850,6.5072,128.21,128.14,16.12817042]
[1719191827056,6.5072,128.21,128.14,23.43207042]
[1719191827360,6.5072,128.21,128.14,15.62817042]
[1719191827871,7.81058505,128.21,128.14,15.62817042]
[1719191828278,1.30338505,128.2,128.14,15.62817042]
[1719191828570,7.81058505,128.21,128.14,15.62817042]
[1719191828772,6.5072,128.21,128.14,15.62817042]
[1719191829149,7.81058505,128.21,128.14,15.62817042]
[1719191829350,1.30338505,128.2,128.14,15.62817042]
[1719191833473,6.5072,128.21,128.15,45.0]
[1719191833955,1.30338505,128.2,128.15,45.0]
[1719191834573,1.30338505,128.2,128.14,15.62817042]
[1719191835260,6.5072,128.21,128.14,15.62817042]
[1719191835458,6.5072,128.21,128.14,23.43187042]
[1719191835659,1.30338505,128.2,128.14,15.62817042]
[1719191837174,1.30338505,128.2,128.15,45.0]
[1719191837876,6.5072,128.21,128.15,45.0]
[1719191837877,7.81058505,128.21,128.15,52.8033]
[1719191838181,7.81058505,128.21,128.15,45.0]
[1719191838351,6.5072,128.21,128.16,7.8023]
[1719191838558,6.5072,128.21,128.17,45.0]
[1719191838876,6.5072,128.21,128.15,52.8028]
[1719191840073,6.5072,128.21,128.15,45.0]
[1719191840266,6.5072,128.21,128.2,7.8003]
[1719191840456,6.5072,128.21,128.2,45.0]
[1719191841470,6.5072,128.21,128.14,35.13787042]
[1719191841860,6.5072,128.21,128.17,7.8019]
[1719191842061,6.5072,128.21,128.18,45.0]
[1719191842256,6.5072,128.21,128.18,52.8014]
[1719191842577,6.5072,128.21,128.18,45.0]
[1719191843456,6.5072,128.21,128.18,52.8015]
[1719191843655,6.5072,128.21,128.19,7.8006]
[1719191843858,6.5072,128.21,128.2,45.0]
[1719191844074,6.5072,128.21,128.18,7.8012]
[1719191844256,6.5072,128.21,128.19,45.0]
[1719191844462,6.5072,128.21,128.19,52.8008]
[1719191846059,6.5072,128.21,128.19,45.0]
[1719191846258,6.5072,128.21,128.14,15.62817042]
[1719191846464,6.5072,128.21,128.19,7.8009]
[1719191846759,6.5072,128.21,128.15,19.507]
[1719191846963,6.5072,128.21,128.19,7.8004]
[1719191847176,6.5072,128.21,128.14,15.62817042]
[1719191847478,6.5072,128.21,128.17,7.8017]
[1719191847683,6.5072,128.21,128.18,45.0]
[1719191847870,6.5072,128.21,128.18,52.8012]
[1719191848480,6.5072,128.21,128.19,7.8008]
[1719191848776,6.5072,128.21,128.2,45.0]
[1719191848959,7.81058505,128.21,128.14,15.62817042]
[1719191849161,1.30338505,128.2,128.14,15.62817042]
[1719191849772,0.34,128.19,128.14,15.62817042]
[1719191850279,6.5072,128.21,128.14,15.62817042]
[1719191850464,7.81058505,128.21,128.14,23.43157042]
[1719191850782,1.47338505,128.2,128.14,15.62817042]
[1719191850972,6.48058505,128.21,128.14,15.62817042]
[1719191851591,16.5727,128.2,128.05,20.3672606]
[1719191851767,16.5727,128.18,128.07,7.8081]
[1719191851969,15.2337,128.16,128.05,7.1543606]
[1719191852192,15.2337,128.16,128.03,100.0]
[1719191852193,15.2337,128.14,128.03,7.8102]
[1719191852475,0.17,128.13,128.04,7.8099]
[1719191852679,0.17,128.13,128.01,119.5295]
[1719191852884,16.208,128.12,128.01,100.0]
[1719191853070,16.208,128.12,128.05,7.8089]
[1719191853586,16.208,128.12,128.03,7.8104]
[1719191853884,0.17,128.11,128.04,7.81]
[1719191854061,6.5243,128.11,128.03,19.5253]
[1719191854381,6.5243,128.11,128.04,7.8098]
[1719191854762,6.5243,128.11,128.05,7.8092]
[1719191854962,6.5243,128.11,128.05,7.8093]
[1719191855205,6.5243,128.11,128.06,7.8086]
[1719191855770,6.5243,128.11,128.07,7.8078]
[1719191855965,6.5243,128.11,128.04,19.5244]
[1719191855966,6.5243,128.11,128.08,7.8072]
[1719191856164,6.5243,128.11,128.05,19.5221]
[1719191856368,6.5243,128.11,128.05,7.8093]
[1719191856598,6.5243,128.11,128.06,45.0]
[1719191857093,6.5243,128.11,128.06,52.8082]
[1719191857268,6.5243,128.11,128.06,45.0]
[1719191857585,6.5243,128.11,128.08,7.8071]
[1719191857773,6.5243,128.11,128.07,7.8078]
[1719191857973,6.5243,128.11,128.06,45.0]
[1719191858188,6.5243,128.11,128.05,45.0]
[1719191858485,18.36,128.17,128.03,100.0]
[1719191858486,6.259,128.13,128.04,145.0]
[1719191858787,6.259,128.13,128.08,7.8073]
[1719191858981,6.259,128.13,128.09,45.0]
[1719191859167,6.259,128.13,128.03,19.5254]
[1719191859367,6.259,128.13,128.05,7.8089]
[1719191859890,6.259,128.13,128.06,7.8087]
[1719191860193,137.597344,128.11,128.02,0.17]
[1719191860394,137.597344,128.11,128.06,7.8087]
[1719191860690,137.597344,128.11,128.07,7.8081]
[1719191861097,137.597344,128.11,128.06,7.8085]
[1719191861268,137.597344,128.11,128.07,52.8081]
[1719191861469,137.597344,128.11,128.08,7.8074]
[1719191861767,137.597344,128.11,128.09,45.0]
[1719191861973,137.597344,128.11,128.02,165.35]
[1719191862292,137.597344,128.11,128.06,7.8085]
[1719191862468,137.597344,128.11,128.07,52.808]
[1719191862669,137.597344,128.11,128.06,7.8086]
[1719191862871,137.597344,128.11,128.07,45.0]
[1719191863499,137.597344,128.11,128.06,7.8083]
[1719191863795,137.597344,128.11,128.04,19.5251]
[1719191863976,137.597344,128.11,128.06,7.8086]
[1719191864181,137.597344,128.11,128.05,7.8091]
[1719191864480,137.597344,128.11,128.06,7.8086]
[1719191864687,137.597344,128.11,128.04,19.5237]
[1719191864874,137.597344,128.11,128.08,7.8072]
[1719191865065,137.597344,128.11,128.05,19.5224]
[1719191865264,137.597344,128.11,128.04,100.0]
[1719191865265,137.597344,128.11,128.09,7.8068]
[1719191865466,137.597344,128.11,128.1,52.8064]
[1719191865697,137.597344,128.11,128.1,7.8064]
[1719191865991,137.597344,128.11,128.1,52.8064]
[1719191867185,137.597344,128.11,128.1,45.0]
[1719191867385,137.597344,128.11,128.1,52.8064]
[1719191870786,137.597344,128.11,128.1,152.9764]
[1719191870987,137.597344,128.11,128.1,191.5064]
[1719191871700,117.597344,128.11,128.1,238.3264]
[1719191872082,117.597344,128.11,128.1,254.5624]
[1719191872394,22.9346,128.22,128.18,7.8015]
[1719191874095,22.9346,128.22,128.19,7.8009]
[1719191874393,22.9346,128.22,128.17,7.8016]
[1719191874698,22.9346,128.22,128.18,52.8013]
[1719191874895,22.9346,128.22,128.16,7.8025]
[1719191875197,22.9346,128.22,128.17,7.8019]
[1719191875391,22.9346,128.22,128.18,7.8013]
[1719191875589,22.9346,128.22,128.17,45.0]
[1719191875784,22.9346,128.22,128.17,7.8018]
[1719191875989,22.9346,128.22,128.18,52.8015]
[1719191876183,22.9346,128.22,128.18,7.8015]
[1719191876491,22.9346,128.22,128.16,45.0]
[1719191876694,22.9346,128.22,128.18,7.8015]
[1719191876886,22.9346,128.22,128.19,7.8007]
[1719191877084,22.9346,128.22,128.15,7.8032]
[1719191877690,22.9346,128.22,128.16,7.8024]
[1719191878214,22.9346,128.22,128.15,7.8032]
[1719191879089,22.9346,128.22,128.11,100.0]
[1719191879090,22.9346,128.22,128.19,7.8008]
[1719191879277,22.9346,128.22,128.14,100.0]
[1719191879278,22.9346,128.22,128.15,19.5072]
[1719191879478,22.9346,128.22,128.17,7.8017]
[1719191880203,22.9346,128.22,128.18,7.8014]
[1719191880393,22.9346,128.22,128.18,45.0]
[1719191880600,22.9346,128.22,128.18,7.8013]
[1719191880803,22.9346,128.22,128.15,100.0]
[1719191881299,22.9346,128.22,128.17,7.8016]
[1719191881510,22.9346,128.22,128.18,52.8015]
[1719191881680,22.9346,128.22,128.18,7.8015]
[1719191882094,22.9346,128.22,128.19,7.8007]
[1719191882403,22.9346,128.22,128.2,45.0]
[1719191882606,6.4075,128.22,128.2,45.0]
[1719191882785,6.4075,128.22,128.2,7.8001]
[1719191883104,15.182,128.25,128.19,45.0]
[1719191883105,21.4022,128.25,128.21,52.7996]
[1719191883302,21.4022,128.25,128.22,45.0]
[1719191884005,21.68,128.28,128.22,52.799]
[1719191884320,21.68,128.28,128.23,7.7984]
[1719191884482,21.68,128.27,128.13,15.9449]
[1719191884921,18.36,128.26,128.15,7.803]
[1719191885128,21.68,128.25,128.13,7.8043]
[1719191885485,18.36,128.23,128.1,15.9449]
[1719191885711,21.9704,128.21,128.1,7.806]
[1719191885918,21.9704,128.21,128.11,7.8056]
[1719191886084,21.9704,128.21,128.08,119.5187]
[1719191886285,21.9704,128.21,128.12,7.805]
[1719191886485,21.9704,128.21,128.12,7.8049]
[1719191886925,0.17,128.2,128.11,7.8055]
[1719191887102,0.17,128.2,128.12,7.805]
[1719191887421,6.03,128.18,128.04,15.1473]
[1719191887716,0.34,128.17,128.07,7.8078]
[1719191887897,0.34,128.17,128.08,7.8076]
[1719191888089,0.17,128.17,128.09,7.8066]
[1719191888412,6.03,128.18,128.07,119.5201]
[1719191888718,6.03,128.18,128.09,7.8065]
[1719191888909,6.03,128.18,128.1,7.8062]
[1719191889105,6.03,128.18,128.11,7.8057]
[1719191889288,16.5174,128.17,128.11,7.8057]
[1719191889495,0.17,128.16,128.07,7.808]
[1719191889790,6.519,128.15,128.04,37.8837]
[1719191890001,6.519,128.15,128.06,7.8086]
[1719191890321,0.17,128.14,128.06,7.8085]
[1719191890519,0.34,128.14,128.06,7.8085]
[1719191892817,0.34,128.14,128.02,100.0]
[1719191892818,6.689,128.15,128.08,7.8074]
[1719191893028,6.689,128.15,128.07,7.8081]
[1719191893398,6.689,128.15,128.08,7.8075]
[1719191893594,6.519,128.15,128.09,7.8069]
[1719191894216,6.519,128.15,128.1,7.8062]
[1719191894396,6.519,128.15,128.1,45.0]
[1719191895126,6.519,128.15,128.1,52.8062]
[1719191895298,6.519,128.15,128.07,100.0]
[1719191895497,6.519,128.15,128.09,7.8069]
[1719191896009,6.519,128.15,128.07,100.0]
[1719191896199,6.519,128.15,128.09,7.807]
[1719191896404,6.519,128.15,128.1,45.0]
[1719191896605,6.519,128.15,128.08,7.8075]
[1719191897406,6.519,128.15,128.09,7.8069]
[1719191898800,0.17,128.14,128.03,100.0]
[1719191899124,6.519,128.15,128.05,100.0]
[1719191899328,0.34,128.14,128.06,7.8084]
[1719191900098,6.519,128.15,128.07,7.8081]
[1719191900297,6.519,128.15,128.08,7.8073]
[1719191902531,6.519,128.15,128.04,219.5239]
[1719191902739,6.519,128.15,128.05,45.17]
[1719191902918,6.519,128.15,128.07,7.8079]
[1719191903116,6.519,128.15,128.08,45.0]
[1719191903604,6.519,128.15,128.09,7.8067]
[1719191903924,6.519,128.15,128.1,7.8063]
[1719191904103,6.519,128.15,128.08,7.8073]
[1719191904303,6.519,128.15,128.09,52.8069]
[1719191906832,6.519,128.15,128.06,18.36]
[1719191907014,6.519,128.15,128.07,7.8077]
[1719191907215,6.519,128.15,128.08,7.807]
[1719191907528,6.519,128.15,128.06,26.1686]
[1719191907718,0.17,128.14,128.05,7.8093]
[1719191908027,15.0894,128.13,128.02,118.36]
[1719191908231,15.0894,128.13,128.03,20.0]
[1719191908446,15.0894,128.13,128.05,7.8094]
[1719191910410,15.0894,128.13,128.06,7.8087]
[1719191910633,6.4046,128.12,128.04,7.8094]
[1719191910929,6.2346,128.12,128.05,7.8093]
[1719191911431,6.2346,128.12,128.04,7.8097]
[1719191914257,6.2346,128.12,128.03,7.8104]
[1719191914411,18.36,128.08,128.0,69.39307753]
[1719191914616,22.3199,128.06,128.0,69.39307753]
[1719191914916,6.6532,128.04,128.0,52.72647753]
[1719191916315,0.17,128.03,128.0,52.72647753]
[1719191916512,0.34,128.03,128.0,52.72647753]
[1719191917141,0.34,128.03,128.0,42.16637753]
[1719191918052,6.5983,128.02,128.0,9.98617667]
[1719191918422,0.17,128.01,128.0,7.94717667]
[1719191918729,0.17,128.01,128.0,5.59798275]
[1719191918925,2.2498,128.0,127.98,32.4084256]
[1719191919137,0.34,127.99,127.98,23.9084256]
[1719191919357,0.34,127.99,127.98,21.55923168]
[1719191919518,0.34,127.99,127.98,9.40943168]
[1719191919720,18.7,127.99,127.92,0.8451606]
[1719191919945,6.27558027,128.03,127.92,0.8451606]
[1719191920146,19.4286,128.01,127.92,0.8451606]
[1719191920332,0.17,128.0,127.92,0.3451606]
[1719191920740,0.34,128.0,127.92,0.3451606]
[1719191920940,18.36,127.99,127.92,0.3451606]
[1719191921148,1.0686,128.01,127.92,0.3451606]
[1719191921339,1.0686,128.01,127.92,8.1623606]
[1719191921542,1.0686,128.01,127.92,0.3451606]
[1719191921961,1.0686,128.01,127.92,8.1623606]
[1719191922253,1.0686,128.01,127.92,0.3451606]
[1719191922658,0.17,128.0,127.92,0.3451606]
[1719191922962,0.34,128.0,127.92,0.3451606]
[1719191924034,1.0686,128.01,127.92,8.1624606]
[1719191924237,1.0686,128.01,127.93,7.8167]
[1719191924545,1.0686,128.01,127.92,0.3451606]
[1719191924748,1.0686,128.01,127.93,7.8165]
[1719191925265,1.0686,128.01,127.87,38.14911416]
[1719191925468,1.0686,128.01,127.62,1632.91659797]
[1719191925469,1.0686,128.01,127.88,100.0]
[1719191925642,19.4286,128.01,127.86,45.54232242]
[1719191925843,18.36,127.98,127.86,11.57542242]
[1719191926056,7.8176,127.92,127.86,11.57542242]
[1719191926267,7.8171,127.93,127.86,19.39592242]
[1719191926542,7.817,127.93,127.86,18.39602242]
[1719191926730,7.8174,127.92,127.86,10.57542242]
[1719191926951,7.8169,127.93,127.86,18.39612242]
[1719191927155,7.8174,127.92,127.86,10.57542242]
[1719191927745,7.8168,127.93,127.87,7.8204]
[1719191927943,7.8162,127.94,127.87,7.8204]
[1719191928142,7.8171,127.93,127.86,18.39632242]
[1719191928458,7.8177,127.92,127.86,18.39632242]
[1719191928756,7.8177,127.92,127.86,10.57542242]
[1719191928956,7.8177,127.92,127.86,18.39632242]
[1719191929158,7.8177,127.92,127.86,10.57542242]
[1719191929348,7.818,127.91,127.86,10.57542242]
[1719191929664,7.8175,127.92,127.86,10.57542242]
[1719191929963,7.8175,127.92,127.86,18.39632242]
[1719191930151,7.8175,127.92,127.86,10.57542242]
[1719191930539,7.8169,127.93,127.86,18.39622242]
[1719191930741,7.8164,127.94,127.87,7.8201]
[1719191930942,6.10346592,127.96,127.88,7.8198]
[1719191931143,7.8157,127.95,127.86,10.57542242]
[1719191931364,7.8162,127.94,127.88,7.8192]
[1719191931568,7.8162,127.94,127.87,7.8201]
[1719191931870,7.8149,127.96,127.87,19.5497]
[1719191932142,7.8156,127.95,127.89,7.8188]
[1719191932463,20.6001,128.0,127.91,7.8174]
[1719191932765,7.8143,127.97,127.91,7.8174]
[1719191932965,7.8139,127.98,127.91,7.8174]
[1719191933163,7.8132,127.99,127.9,19.5463]
[1719191933375,7.8138,127.98,127.9,19.5463]
[1719191933551,1.0686,128.0,127.92,7.8169]
[1719191933749,7.8141,127.98,127.91,7.8175]
[1719191933946,7.8154,127.96,127.88,6.4835]
[1719191934159,19.534,127.99,127.88,6.4835]
[1719191934160,7.8157,127.95,127.88,6.4835]
[1719191934461,7.8157,127.95,127.89,7.8189]
[1719191934660,19.5355,127.98,127.89,7.8189]
[1719191935059,7.8152,127.96,127.89,7.8189]
[1719191935369,7.8163,127.94,127.88,6.4835]
[1719191935748,7.8167,127.93,127.88,6.4835]
[1719191935951,7.8169,127.93,127.88,6.4835]
[1719191936144,19.5369,127.97,127.88,14.3031]
[1719191936344,7.817,127.93,127.88,6.4835]
[1719191936545,7.8164,127.94,127.88,6.4835]
[1719191936755,7.8157,127.95,127.88,14.303]
[1719191936951,7.8157,127.95,127.89,7.8191]
[1719191937667,7.815,127.96,127.9,7.8185]
[1719191938077,19.5329,127.99,127.9,7.8185]
[1719191938078,7.8145,127.97,127.9,7.8185]
[1719191938276,7.8151,127.96,127.89,7.8189]
[1719191938578,7.8158,127.95,127.89,7.8189]
[1719191938748,7.8152,127.96,127.89,7.8189]
[1719191939068,7.8152,127.96,127.9,7.8185]
[1719191939417,7.8144,127.97,127.91,7.8178]
[1719191939576,7.8145,127.97,127.91,7.8178]
[1719191939783,7.8143,127.97,127.91,7.8178]
[1719191939954,7.8143,127.97,127.9,7.8184]
[1719191940148,7.8143,127.97,127.91,7.8179]
[1719191940364,7.8134,127.99,127.92,7.8171]
[1719191940560,2.61740727,128.03,127.89,19.5476]
[1719191940875,2.61740727,128.03,127.88,106.4835]
[1719191940876,7.8147,127.97,127.88,6.4835]
[1719191941174,19.5316,128.0,127.9,7.8182]
[1719191941472,7.8146,127.97,127.9,7.8182]
[1719191941776,7.8146,127.97,127.91,7.8179]
[1719191942161,7.8146,127.97,127.9,7.8183]
[1719191942485,7.8151,127.96,127.9,7.8184]
[1719191943073,7.8145,127.97,127.9,7.8184]
[1719191943459,7.8145,127.97,127.91,7.8176]
[1719191943657,7.8139,127.98,127.91,7.8176]
[1719191943869,7.8144,127.97,127.91,7.8176]
[1719191944252,7.8139,127.98,127.92,7.8173]
[1719191944752,7.8139,127.98,127.91,7.8178]
[1719191946057,7.8143,127.97,127.9,7.8183]
[1719191947374,19.5316,128.0,127.88,26.0315]
[1719191947551,7.8139,127.98,127.91,7.8177]
[1719191948177,7.8139,127.98,127.88,26.0315]
[1719191948478,0.34,128.01,127.93,7.8165]
[1719191948659,7.8137,127.98,127.92,7.8171]
[1719191948859,7.8137,127.98,127.91,7.8178]
[1719191949256,7.8143,127.97,127.91,7.8178]
[1719191949750,7.8143,127.97,127.89,19.5479]
[1719191949751,1.0686,127.97,127.89,7.8186]
[1719191949956,1.0686,127.97,127.87,15.7053]
[1719191950559,20.6045,127.97,127.87,15.7053]
[1719191950758,7.8164,127.94,127.88,7.8194]
[1719191950958,7.8164,127.94,127.87,15.7053]
[1719191951182,20.6045,127.97,127.87,15.7053]
[1719191951183,7.8157,127.95,127.88,7.8194]
[1719191951685,7.8157,127.95,127.89,7.8192]
[1719191952868,7.8162,127.94,127.88,7.8195]
[1719191953063,18.51,127.95,127.86,10.57542242]
[1719191953259,0.17,127.94,127.86,10.57542242]
[1719191953463,19.5433,127.93,127.86,10.57542242]
[1719191953664,7.818,127.91,127.86,10.57542242]
[1719191954165,18.68,127.95,127.86,10.57542242]
[1719191954166,7.8175,127.92,127.86,10.57542242]
[1719191954367,38.219,127.95,127.86,10.57542242]
[1719191954566,7.818,127.91,127.86,10.57542242]
[1719191955382,7.8189,127.9,127.86,10.57542242]
[1719191955556,19.5449,127.92,127.86,10.57542242]
[1719191956091,7.8188,127.9,127.86,10.57542242]
[1719191956265,7.8189,127.9,127.86,10.57542242]
[1719191956463,38.0549,127.92,127.86,10.57542242]
[1719191957579,7.8204,127.87,127.86,3.12942227]
[1719191957770,7.9904,127.87,127.86,2.15842227]
[1719191957967,7.8204,127.87,127.86,2.15842227]
[1719191958176,7.8201,127.88,127.86,2.15842227]
[1719191958490,7.8204,127.87,127.86,2.15842227]
[1719191960071,7.8199,127.88,127.86,2.15842227]
[1719191960270,20.7836,127.91,127.86,2.15842227]
[1719191960470,7.82,127.88,127.86,2.15842227]
[1719191961594,7.8204,127.87,127.86,2.15842227]
[1719191964383,7.8204,127.87,127.82,7.89721861]
[1719191964384,19.5511,127.87,127.82,7.89721861]
[1719191964585,7.8228,127.83,127.82,7.89721861]
[1719191965192,7.8228,127.83,127.82,6.62284088]
[1719191965896,1.0686,127.82,127.77,1.0]
[1719191966092,7.8253,127.79,127.78,1.08913443]
[1719191966594,7.8253,127.79,127.77,1.0]
[1719191966806,7.8259,127.78,127.77,1.0]
[1719191966999,18.01,127.8,127.74,7.65324433]
[1719191967000,7.8266,127.77,127.74,7.65324433]
[1719191967301,37.5732,127.8,127.74,7.65324433]
[1719191967302,18.01,127.8,127.74,7.65324433]
[1719191967483,0.34,127.79,127.74,7.65324433]
[1719191967679,7.8269,127.77,127.74,7.65324433]
[1719191967874,7.8271,127.76,127.74,7.65324433]
[1719191968093,7.8272,127.76,127.74,7.65324433]
[1719191968303,0.34,127.79,127.74,7.15324433]
[1719191968304,7.8277,127.75,127.74,7.15324433]
[1719191968609,1.0686,127.82,127.74,7.15324433]
[1719191968787,0.17,127.81,127.74,7.15324433]
[1719191968986,7.9945,127.81,127.74,7.15324433]
[1719191969187,7.8266,127.77,127.74,7.15324433]
[1719191969444,0.17,127.81,127.74,7.15324433]
[1719191969445,7.8277,127.75,127.74,1.67492323]
[1719191969607,0.17,127.78,127.7,8.81553881]
[1719191969909,0.17,127.78,127.7,7.81553881]
[1719191970086,45.17,127.78,127.7,7.81553881]
[1719191970781,18.51,127.76,127.7,7.81553881]
[1719191970984,18.51,127.76,127.7,7.31553881]
[1719191970985,45.34,127.75,127.7,7.31553881]
[1719191971506,18.51,127.73,127.66,9.41780698]
[1719191971683,0.34,127.72,127.66,9.41780698]
[1719191971881,45.34,127.72,127.66,8.91780698]
[1719191972103,0.17,127.72,127.66,8.91780698]
[1719191972492,45.34,127.72,127.66,8.91780698]
[1719191973289,7.8326,127.67,127.66,8.91780698]
[1719191974004,7.8326,127.67,127.66,3.09770138]
[1719191974417,7.8351,127.63,127.62,6.72428146]
[1719191974608,7.8351,127.63,127.6,19.93730427]
[1719191974609,6.8363,127.61,127.6,19.93730427]
[1719191974785,6.8363,127.61,127.6,14.70460999]
[1719191975104,18.68,127.63,127.6,14.70460999]
[1719191975302,18.68,127.63,127.55,2.214e-05]
[1719191975303,7.8394,127.56,127.55,2.214e-05]